[Event "46th GRE-chT Premier 2018"]
[Site "Rio Achaia"]
[Date "2018.07.11"]
[Round "3"]
[White "Bastianou, Chrysoula"]
[Black "Kalyva, Kyriaki"]
[Result "1/2-1/2"]
[ECO "D10"]
[WhiteElo "1710"]
[BlackElo "1734"]
[Annotator "NA"]
[PlyCount "102"]
[EventDate "2018.07.10"]
[EventType "team-tourn"]
[EventCountry "GRE"]
[SourceTitle "playchess.com"]
[Source "ChessBase"]
[SourceQuality "1"]
[TimeControl "40/5400+30:1800+30"]

1. d4 {[%emt 0:00:00]} d5 {[%emt 0:00:00]} 2. c4 {[%emt 0:00:00]} c6 {[%emt 0:00:00]} 3. Nc3 {[%emt 0:00:00]} Nf6 {[%emt 0:00:00]} 4. cxd5 {[%emt 0:00:00]} cxd5 {[%emt 0:00:00]} 5. Nf3 {[%emt 0:00:00]} Nc6 {[%emt 0:00:00]} 6. Bf4 {[%emt 0:00:04]} e6 {[%emt 0:00:07]} 7. e3 {[%emt 0:00:04]} Bd6 {[%emt 0:00:09]} 8. Bxd6 {[%emt 0:00:06]} Qxd6 {[%emt 0:00:04]} 9. Bd3 {[%emt 0:00:05]} O-O {[%emt 0:00:15]} 10. O-O {[%emt 0:00:03]} a6 {[%emt 0:02:54]} 11. a3 {[%emt 0:02:28]} e5 {[%emt 0:07:38]} 12. dxe5 {[%emt 0:03:07]} Nxe5 {[%emt 0:00:06]} 13. Nxe5 {[%emt 0:08:07]} Qxe5 {[%emt 0:00:06]} 14. Be2 {[%emt 0:02:44]} Bf5 {[%emt 0:03:48]} 15. Qb3 {[%emt 0:03:51]} Rab8 {[%emt 0:11:35]} 16. Rfd1 {[%emt 0:01:32]} Rfd8 {[%emt 0:01:45]} 17. Rd4 {[%emt 0:01:21]} Rd7 {[%emt 0:09:10]} 18. Rad1 {[%emt 0:00:40]} Rbd8 {[%emt 0:04:00]} 19. Bf3 {[%emt 0:01:32]} Be6 {[%emt 0:00:55]} 20. R1d3 {[%emt 0:09:27]} Bf5 {[%emt 0:05:11]} 21. Rd2 {[%emt 0:00:53]} Be6 {[%emt 0:00:32]} 22. Qd1 {[%emt 0:03:44]} Qf5 {[%emt 0:05:14]} 23. a4 {[%emt 0:04:53]} Ne4 {[%emt 0:03:24]} 24. Bxe4 {[%emt 0:04:00]} dxe4 {[%emt 0:00:11]} 25. Rxd7 {[%emt 0:01:06]} Rxd7 {[%emt 0:00:06]} 26. Rxd7 {[%emt 0:01:21]} Bxd7 {[%emt 0:00:06]} 27. Qd4 {[%emt 0:00:42]} h6 {[%emt 0:00:41]} 28. Nd5 {[%emt 0:15:26]} Qe6 {[%emt 0:01:13]} 29. a5 {[%emt 0:03:07]} Bc6 {[%emt 0:02:32]} 30. Nb4 {[%emt 0:06:12]} Bb5 {[%emt 0:02:08]} 31. h3 {[%emt 0:01:12]} Qc4 {[%emt 0:00:37]} 32. Qxc4 {[%emt 0:02:11]} Bxc4 {[%emt 0:00:12]} 33. f3 {[%emt 0:01:01]} exf3 {[%emt 0:01:15]} 34. gxf3 {[%emt 0:00:08]} Kf8 {[%emt 0:00:28]} 35. Kf2 {[%emt 0:00:30]} Ke7 {[%emt 0:00:46]} 36. e4 {[%emt 0:06:52]} Kd6 {[%emt 0:02:08]} 37. Ke3 {[%emt 0:01:08]} Kc5 {[%emt 0:01:10]} 38. Nc2 {[%emt 0:00:58]} g5 {[%emt 0:08:07]} 39. Nd4 {[%emt 0:03:07]} Bf1 {[%emt 0:00:36]} 40. Nf5 {[%emt 0:00:00]} Bxh3 {[%emt 0:00:00]} 41. Nxh6 {[%emt 0:06:12]} Be6 {[%emt 0:03:30]} 42. f4 {[%emt 0:08:43]} f6 {[%emt 0:01:47]} 43. e5 {[%emt 0:03:03]} gxf4+ {[%emt 0:00:08]} 44. Kxf4 {[%emt 0:00:15]} fxe5+ {[%emt 0:00:03]} 45. Kxe5 {[%emt 0:00:18]} Bh3 {[%emt 0:00:14]} 46. Nf7 {[%emt 0:01:00]} Kb4 {[%emt 0:00:22]} 47. Nd6 {[%emt 0:03:32]} Bg2 {[%emt 0:00:18]} 48. Kd4 {[%emt 0:00:41]} Kxa5 {[%emt 0:01:12]} 49. Kc3 {[%emt 0:10:56]} b5 {[%emt 0:06:02]} 50. b3 {[%emt 0:01:46]} b4+ {[%emt 0:04:28]} 51. Kc4 {[%emt 0:02:44]} Kb6 {[%emt 0:01:28]} 1/2-1/2

[Event "46th GRE-chT Premier 2018"]
[Site "Rio Achaia"]
[Date "2018.07.11"]
[Round "3"]
[White "Spyratos, Nikolaos"]
[Black "Basinas, Konstantinos"]
[Result "1/2-1/2"]
[ECO "B25"]
[WhiteElo "1710"]
[BlackElo "1383"]
[Annotator "NA"]
[PlyCount "137"]
[EventDate "2018.07.10"]
[EventType "team-tourn"]
[EventCountry "GRE"]
[SourceTitle "playchess.com"]
[Source "ChessBase"]
[SourceQuality "1"]
[TimeControl "40/5400+30:1800+30"]

1. e4 {[%emt 0:00:00]} c5 {[%emt 0:00:00]} 2. Nc3 {[%emt 0:00:00]} d6 {[%emt 0:00:00]} 3. g3 {[%emt 0:00:00]} Nc6 {[%emt 0:00:00]} 4. Bg2 {[%emt 0:00:00]} g6 {[%emt 0:00:00]} 5. d3 {[%emt 0:00:07]} Bg7 {[%emt 0:00:00]} 6. Nge2 {[%emt 0:00:08]} e6 {[%emt 0:00:02]} 7. O-O {[%emt 0:00:14]} Nge7 {[%emt 0:00:06]} 8. Rb1 {[%emt 0:00:17]} O-O {[%emt 0:00:42]} 9. Be3 {[%emt 0:00:05]} Nd4 {[%emt 0:01:24]} 10. b4 {[%emt 0:00:18]} Rb8 {[%emt 0:07:36]} 11. f4 {[%emt 0:07:41]} b6 {[%emt 0:02:44]} 12. bxc5 {[%emt 0:04:15]} dxc5 {[%emt 0:00:08]} 13. Qd2 {[%emt 0:08:52]} Bb7 {[%emt 0:04:30]} 14. Bf2 {[%emt 0:04:12]} Nec6 {[%emt 0:01:09]} 15. e5 {[%emt 0:10:13]} Qd7 {[%emt 0:18:06]} 16. Ne4 {[%emt 0:12:35]} Nxe2+ {[%emt 0:06:14]} 17. Qxe2 {[%emt 0:00:17]} Nd4 {[%emt 0:01:13]} 18. Qd1 {[%emt 0:01:52]} Bxe4 {[%emt 0:07:19]} 19. Bxe4 {[%emt 0:03:25]} Rfd8 {[%emt 0:01:46]} 20. Re1 {[%emt 0:15:24]} Rbc8 {[%emt 0:04:26]} 21. c3 {[%emt 0:02:50]} Nc6 {[%emt 0:03:31]} 22. Qe2 {[%emt 0:06:54]} Ne7 {[%emt 0:01:19]} 23. Rbd1 {[%emt 0:07:30]} Nd5 {[%emt 0:00:54]} 24. Bxd5 {[%emt 0:00:39]} Qxd5 {[%emt 0:01:16]} 25. g4 {[%emt 0:02:32]} Qc6 {[%emt 0:03:43]} 26. Qe4 {[%emt 0:06:35]} Qd5 {[%emt 0:01:59]} 27. c4 {[%emt 0:02:49]} Qc6 {[%emt 0:01:23]} 28. Qxc6 {[%emt 0:02:55]} Rxc6 {[%emt 0:00:12]} 29. a4 {[%emt 0:01:01]} Bf8 {[%emt 0:01:17]} 30. Bh4 {[%emt 0:00:30]} Rd7 {[%emt 0:00:39]} 31. Re2 {[%emt 0:00:39]} Be7 {[%emt 0:00:14]} 32. Bxe7 {[%emt 0:00:26]} Rxe7 {[%emt 0:00:05]} 33. d4 {[%emt 0:00:34]} cxd4 {[%emt 0:00:54]} 34. Rxd4 {[%emt 0:00:05]} Rec7 {[%emt 0:00:05]} 35. Rc2 {[%emt 0:01:03]} a6 {[%emt 0:01:13]} 36. Rb2 {[%emt 0:00:31]} Rxc4 {[%emt 0:00:13]} 37. Rd8+ {[%emt 0:00:29]} Kg7 {[%emt 0:00:21]} 38. Rb8 {[%emt 0:00:32]} Rxf4 {[%emt 0:02:01]} 39. h3 {[%emt 0:00:11]} Rxa4 {[%emt 0:00:23]} 40. R2xb6 {[%emt 0:00:00]} Rc2 {[%emt 0:00:00]} 41. Rb1 {[%emt 0:01:33]} Rac4 {[%emt 0:02:15]} 42. Rf1 {[%emt 0:01:43]} Rc1 {[%emt 0:00:27]} 43. Rb1 {[%emt 0:00:11]} Rxf1+ {[%emt 0:00:15]} 44. Kxf1 {[%emt 0:00:14]} Re4 {[%emt 0:00:33]} 45. Ra1 {[%emt 0:00:08]} Rxe5 {[%emt 0:00:09]} 46. Rxa6 {[%emt 0:00:07]} h5 {[%emt 0:00:49]} 47. Kf2 {[%emt 0:00:07]} hxg4 {[%emt 0:00:04]} 48. hxg4 {[%emt 0:00:04]} f5 {[%emt 0:00:20]} 49. g5 {[%emt 0:00:34]} Re4 {[%emt 0:00:56]} 50. Ra7+ {[%emt 0:00:07]} Kf8 {[%emt 0:00:07]} 51. Ra8+ {[%emt 0:00:02]} Ke7 {[%emt 0:00:10]} 52. Ra7+ {[%emt 0:00:04]} Kf8 {[%emt 0:13:28]} 53. Ra8+ {[%emt 0:00:09]} Ke7 {[%emt 0:00:05]} 54. Ra7+ {[%emt 0:00:05]} Kd6 {[%emt 0:02:47]} 55. Rg7 {[%emt 0:00:07]} Rg4 {[%emt 0:01:01]} 56. Rxg6 {[%emt 0:00:04]} Ke7 {[%emt 0:00:42]} 57. Rg7+ {[%emt 0:00:45]} Kf8 {[%emt 0:00:06]} 58. Rg6 {[%emt 0:00:05]} Kf7 {[%emt 0:00:06]} 59. Rf6+ {[%emt 0:00:04]} Kg7 {[%emt 0:01:57]} 60. Rxe6 {[%emt 0:00:47]} Rxg5 {[%emt 0:00:07]} 61. Kf3 {[%emt 0:00:08]} Rg4 {[%emt 0:01:06]} 62. Ra6 {[%emt 0:01:08]} Rc4 {[%emt 0:00:28]} 63. Rb6 {[%emt 0:00:09]} Re4 {[%emt 0:01:44]} 64. Ra6 {[%emt 0:00:03]} Kf7 {[%emt 0:00:28]} 65. Rb6 {[%emt 0:00:04]} Re6 {[%emt 0:00:09]} 66. Rxe6 {[%emt 0:00:23]} Kxe6 {[%emt 0:00:04]} 67. Kf4 {[%emt 0:00:05]} Kf6 {[%emt 0:00:05]} 68. Kf3 {[%emt 0:00:04]} Ke5 {[%emt 0:00:04]} 69. Ke3 {[%emt 0:00:04]} 1/2-1/2

[Event "46th GRE-chT Premier 2018"]
[Site "Rio Achaia"]
[Date "2018.07.11"]
[Round "3"]
[White "Kouta, Antonia"]
[Black "Giannoulaki, Ermofili"]
[Result "1-0"]
[ECO "C24"]
[WhiteElo "1703"]
[BlackElo "1286"]
[Annotator "NA"]
[PlyCount "65"]
[EventDate "2018.07.10"]
[EventType "team-tourn"]
[EventCountry "GRE"]
[SourceTitle "playchess.com"]
[Source "ChessBase"]
[SourceQuality "1"]
[TimeControl "40/5400+30:1800+30"]

1. e4 {[%emt 0:02:15]} e5 {[%emt 0:00:00]} 2. Bc4 {[%emt 0:01:29]} Nf6 {[%emt 0:01:11]} 3. d3 {[%emt 0:00:06]} Be7 {[%emt 0:00:38]} 4. Nf3 {[%emt 0:01:20]} d6 {[%emt 0:00:08]} 5. c3 {[%emt 0:00:28]} O-O {[%emt 0:00:34]} 6. O-O {[%emt 0:00:50]} c6 {[%emt 0:00:25]} 7. Bb3 {[%emt 0:00:55]} Nbd7 {[%emt 0:00:34]} 8. Re1 {[%emt 0:00:58]} Qc7 {[%emt 0:01:06]} 9. Nbd2 {[%emt 0:02:59]} b5 {[%emt 0:02:42]} 10. Nf1 {[%emt 0:09:35]} Nc5 {[%emt 0:04:02]} 11. Bc2 {[%emt 0:00:48]} Re8 {[%emt 0:00:28]} 12. Ng3 {[%emt 0:01:54]} Bf8 {[%emt 0:02:01]} 13. Bg5 {[%emt 0:07:34]} Nfd7 {[%emt 0:04:12]} 14. Qd2 {[%emt 0:13:38]} Bb7 {[%emt 0:04:43]} 15. h4 {[%emt 0:06:45]} d5 {[%emt 0:05:26]} 16. d4 {[%emt 0:08:03]} dxe4 {[%emt 0:08:00]} 17. Nxe4 {[%emt 0:00:52]} Nxe4 {[%emt 0:00:13]} 18. Bxe4 {[%emt 0:00:19]} exd4 {[%emt 0:03:57]} 19. cxd4 {[%emt 0:15:14]} Nb6 {[%emt 0:05:42]} 20. b3 {[%emt 0:01:57]} f6 {[%emt 0:02:45]} 21. Bf4 {[%emt 0:00:40]} Bd6 {[%emt 0:00:16]} 22. Bxd6 {[%emt 0:00:52]} Qxd6 {[%emt 0:00:07]} 23. h5 {[%emt 0:03:29]} Nd5 {[%emt 0:04:08]} 24. Nh4 {[%emt 0:01:27]} Ne7 {[%emt 0:04:20]} 25. Bc2 {[%emt 0:04:07]} c5 {[%emt 0:01:21]} 26. Qd3 {[%emt 0:00:43]} Qxd4 {[%emt 0:03:28]} 27. Qxh7+ {[%emt 0:00:15]} Kf8 {[%emt 0:01:49]} 28. Qh8+ {[%emt 0:05:08]} Ng8 {[%emt 0:00:36]} 29. Bh7 {[%emt 0:03:39]} Qd5 {[%emt 0:01:59]} 30. h6 {[%emt 0:02:35]} gxh6 {[%emt 0:02:34]} 31. Bxg8 {[%emt 0:00:15]} Qxg8 {[%emt 0:00:38]} 32. Qxf6+ {[%emt 0:00:12]} Qf7 {[%emt 0:00:18]} 33. Ng6+ {[%emt 0:00:15]} 1-0

[Event "46th GRE-chT Premier 2018"]
[Site "Rio Achaia"]
[Date "2018.07.11"]
[Round "3"]
[White "Stratigi, Evangelia"]
[Black "Houhouli, Hristina"]
[Result "1-0"]
[ECO "B30"]
[WhiteElo "1688"]
[BlackElo "1439"]
[Annotator "NA"]
[PlyCount "99"]
[EventDate "2018.07.10"]
[EventType "team-tourn"]
[EventCountry "GRE"]
[SourceTitle "playchess.com"]
[Source "ChessBase"]
[SourceQuality "1"]
[TimeControl "40/5400+30:1800+30"]

1. e4 {[%emt 0:00:00]} c5 {[%emt 0:00:00]} 2. Nf3 {[%emt 0:00:00]} Nc6 {[%emt 0:00:00]} 3. Bb5 {[%emt 0:00:23]} e6 {[%emt 0:00:00]} 4. Bxc6 {[%emt 0:01:04]} bxc6 {[%emt 0:00:06]} 5. c3 {[%emt 0:01:06]} d5 {[%emt 0:02:09]} 6. Qe2 {[%emt 0:04:41]} Bd6 {[%emt 0:05:24]} 7. d3 {[%emt 0:02:12]} Ne7 {[%emt 0:01:47]} 8. O-O {[%emt 0:01:06]} O-O {[%emt 0:03:10]} 9. e5 {[%emt 0:02:43]} Bc7 {[%emt 0:00:30]} 10. Bg5 {[%emt 0:05:48]} Qd7 {[%emt 0:06:51]} 11. Nbd2 {[%emt 0:07:35]} h6 {[%emt 0:01:17]} 12. Be3 {[%emt 0:01:01]} Bb6 {[%emt 0:01:11]} 13. Nb3 {[%emt 0:02:24]} c4 {[%emt 0:13:24]} 14. dxc4 {[%emt 0:02:19]} Ba6 {[%emt 0:02:16]} 15. Nbd2 {[%emt 0:04:54]} Bxe3 {[%emt 0:03:16]} 16. Qxe3 {[%emt 0:03:16]} dxc4 {[%emt 0:06:03]} 17. Rfd1 {[%emt 0:10:00]} Qb7 {[%emt 0:07:24]} 18. Rab1 {[%emt 0:05:00]} Rfd8 {[%emt 0:02:58]} 19. Qe4 {[%emt 0:11:59]} Qb5 {[%emt 0:06:45]} 20. Qe2 {[%emt 0:09:30]} Nf5 {[%emt 0:04:48]} 21. Ne4 {[%emt 0:02:19]} Rd3 {[%emt 0:09:17]} 22. g4 {[%emt 0:06:55]} Ne7 {[%emt 0:01:43]} 23. Nd6 {[%emt 0:02:08]} Qc5 {[%emt 0:09:24]} 24. Ne1 {[%emt 0:01:42]} Rd5 {[%emt 0:01:10]} 25. Rxd5 {[%emt 0:00:40]} cxd5 {[%emt 0:02:19]} 26. b4 {[%emt 0:03:27]} Qc7 {[%emt 0:02:19]} 27. Nc2 {[%emt 0:02:15]} Nc8 {[%emt 0:01:21]} 28. Nxc8 {[%emt 0:00:34]} Rxc8 {[%emt 0:01:20]} 29. Nd4 {[%emt 0:00:32]} Qe7 {[%emt 0:01:10]} 30. a4 {[%emt 0:01:42]} Qg5 {[%emt 0:00:57]} 31. b5 {[%emt 0:02:17]} Bb7 {[%emt 0:00:28]} 32. h3 {[%emt 0:02:02]} h5 {[%emt 0:01:12]} 33. f3 {[%emt 0:01:36]} hxg4 {[%emt 0:00:54]} 34. fxg4 {[%emt 0:00:16]} Qf4 {[%emt 0:01:52]} 35. Kg2 {[%emt 0:00:52]} Qg5 {[%emt 0:00:52]} 36. Re1 {[%emt 0:00:37]} Qe7 {[%emt 0:00:16]} 37. Qb2 {[%emt 0:00:19]} Qh4 {[%emt 0:00:44]} 38. Qf2 {[%emt 0:00:36]} Qxf2+ {[%emt 0:00:17]} 39. Kxf2 {[%emt 0:00:05]} Kh7 {[%emt 0:00:12]} 40. Ke3 {[%emt 0:00:00]} Kg8 {[%emt 0:00:00]} 41. a5 {[%emt 0:02:23]} a6 {[%emt 0:08:55]} 42. Rb1 {[%emt 0:02:47]} Rc5 {[%emt 0:03:10]} 43. h4 {[%emt 0:02:29]} Kf8 {[%emt 0:08:18]} 44. h5 {[%emt 0:03:47]} Kg8 {[%emt 0:03:56]} 45. g5 {[%emt 0:01:11]} Bc8 {[%emt 0:02:08]} 46. g6 {[%emt 0:01:21]} fxg6 {[%emt 0:04:01]} 47. hxg6 {[%emt 0:02:20]} Kf8 {[%emt 0:02:54]} 48. bxa6 {[%emt 0:02:06]} Ke7 {[%emt 0:02:02]} 49. a7 {[%emt 0:00:47]} Rxa5 {[%emt 0:00:34]} 50. Nc6+ {[%emt 0:00:06]} 1-0

[Event "46th GRE-chT Premier 2018"]
[Site "Rio Achaia"]
[Date "2018.07.11"]
[Round "3"]
[White "Grammatikaki, Aggeliki"]
[Black "Avramidou, Anastasia"]
[Result "0-1"]
[ECO "A27"]
[WhiteElo "1679"]
[BlackElo "2262"]
[Annotator "NA"]
[PlyCount "74"]
[EventDate "2018.07.10"]
[EventType "team-tourn"]
[EventCountry "GRE"]
[SourceTitle "playchess.com"]
[Source "ChessBase"]
[SourceQuality "1"]
[TimeControl "40/5400+30:1800+30"]

1. c4 {[%emt 0:00:00]} e5 {[%emt 0:00:00]} 2. Nc3 {[%emt 0:00:00]} Nc6 {[%emt 0:00:31]} 3. Nf3 {[%emt 0:00:00]} g6 {[%emt 0:01:10]} 4. e3 {[%emt 0:02:11]} Bg7 {[%emt 0:02:15]} 5. d4 {[%emt 0:00:41]} d6 {[%emt 0:01:03]} 6. Be2 {[%emt 0:01:07]} Nge7 {[%emt 0:01:47]} 7. O-O {[%emt 0:03:23]} O-O {[%emt 0:01:13]} 8. a3 {[%emt 0:06:40]} exd4 {[%emt 0:14:07]} 9. Nxd4 {[%emt 0:03:18]} Nxd4 {[%emt 0:16:28]} 10. exd4 {[%emt 0:00:06]} d5 {[%emt 0:00:07]} 11. Bg5 {[%emt 0:10:25]} dxc4 {[%emt 0:06:57]} 12. Bxc4 {[%emt 0:01:43]} h6 {[%emt 0:00:05]} 13. Bf4 {[%emt 0:13:49]} Nc6 {[%emt 0:20:00]} 14. Nb5 {[%emt 0:09:06]} Bf5 {[%emt 0:01:39]} 15. Bxc7 {[%emt 0:06:52]} Qd7 {[%emt 0:00:26]} 16. d5 {[%emt 0:15:23]} Ne5 {[%emt 0:04:10]} 17. Bxe5 {[%emt 0:00:00]} Bxe5 {[%emt 0:00:04]} 18. Nd4 {[%emt 0:04:59]} Bg4 {[%emt 0:11:32]} 19. f3 {[%emt 0:01:15]} Qc7 {[%emt 0:01:40]} 20. Qd3 {[%emt 0:12:51]} Rac8 {[%emt 0:05:05]} 21. b3 {[%emt 0:03:25]} b5 {[%emt 0:01:24]} 22. Nxb5 {[%emt 0:01:52]} Qc5+ {[%emt 0:00:38]} 23. Kh1 {[%emt 0:00:04]} Bf5 {[%emt 0:00:06]} 24. Qd2 {[%emt 0:00:42]} Bxa1 {[%emt 0:04:54]} 25. Rxa1 {[%emt 0:00:05]} Bd7 {[%emt 0:00:12]} 26. Nc3 {[%emt 0:01:51]} Qa5 {[%emt 0:03:29]} 27. Ne4 {[%emt 0:00:56]} Qxd2 {[%emt 0:00:04]} 28. Nxd2 {[%emt 0:00:01]} f5 {[%emt 0:00:47]} 29. Re1 {[%emt 0:00:28]} Rfe8 {[%emt 0:00:30]} 30. Rxe8+ {[%emt 0:00:15]} Bxe8 {[%emt 0:01:04]} 31. Kg1 {[%emt 0:01:21]} Rc5 {[%emt 0:01:04]} 32. Nb1 {[%emt 0:00:19]} Bb5 {[%emt 0:00:41]} 33. Nd2 {[%emt 0:00:48]} Bxc4 {[%emt 0:00:33]} 34. bxc4 {[%emt 0:00:08]} Ra5 {[%emt 0:00:15]} 35. d6 {[%emt 0:00:53]} Kf7 {[%emt 0:00:19]} 36. Kf2 {[%emt 0:00:19]} Rxa3 {[%emt 0:00:58]} 37. c5 {[%emt 0:00:40]} Rc3 {[%emt 0:00:11]} 0-1

[Event "46th GRE-chT Premier 2018"]
[Site "Rio Achaia"]
[Date "2018.07.11"]
[Round "3"]
[White "Prokopiou, Ekaterini"]
[Black "Manelidou, Maria"]
[Result "1/2-1/2"]
[ECO "D10"]
[WhiteElo "1661"]
[BlackElo "2078"]
[Annotator "NA"]
[PlyCount "104"]
[EventDate "2018.07.10"]
[EventType "team-tourn"]
[EventCountry "GRE"]
[SourceTitle "playchess.com"]
[Source "ChessBase"]
[SourceQuality "1"]
[TimeControl "40/5400+30:1800+30"]

1. d4 {[%emt 0:00:00]} d5 {[%emt 0:00:00]} 2. c4 {[%emt 0:00:00]} c6 {[%emt 0:00:00]} 3. cxd5 {[%emt 0:00:34]} cxd5 {[%emt 0:00:00]} 4. Nc3 {[%emt 0:00:48]} Nf6 {[%emt 0:01:38]} 5. Bf4 {[%emt 0:00:44]} Nc6 {[%emt 0:03:05]} 6. e3 {[%emt 0:01:46]} a6 {[%emt 0:01:40]} 7. Bd3 {[%emt 0:02:09]} e6 {[%emt 0:03:41]} 8. Rc1 {[%emt 0:03:08]} Bd6 {[%emt 0:02:03]} 9. Bxd6 {[%emt 0:01:34]} Qxd6 {[%emt 0:00:06]} 10. f4 {[%emt 0:01:42]} Bd7 {[%emt 0:06:01]} 11. Nf3 {[%emt 0:02:58]} Ng4 {[%emt 0:08:46]} 12. Qd2 {[%emt 0:07:05]} f5 {[%emt 0:01:54]} 13. O-O {[%emt 0:05:39]} O-O {[%emt 0:01:04]} 14. Ne5 {[%emt 0:03:25]} Ngxe5 {[%emt 0:12:30]} 15. fxe5 {[%emt 0:09:58]} Qb4 {[%emt 0:02:55]} 16. a3 {[%emt 0:04:34]} Qb3 {[%emt 0:05:24]} 17. Ne2 {[%emt 0:07:06]} Rac8 {[%emt 0:03:06]} 18. Rc3 {[%emt 0:04:23]} Qb6 {[%emt 0:01:32]} 19. b4 {[%emt 0:01:00]} Ne7 {[%emt 0:06:52]} 20. Rfc1 {[%emt 0:03:43]} Bb5 {[%emt 0:11:32]} 21. Nf4 {[%emt 0:06:51]} Bxd3 {[%emt 0:04:09]} 22. Nxd3 {[%emt 0:01:55]} Rxc3 {[%emt 0:07:02]} 23. Rxc3 {[%emt 0:00:20]} Kf7 {[%emt 0:05:07]} 24. Nc5 {[%emt 0:02:48]} Rc8 {[%emt 0:01:07]} 25. Qe2 {[%emt 0:09:09]} g6 {[%emt 0:04:30]} 26. Qe1 {[%emt 0:03:52]} g5 {[%emt 0:01:50]} 27. h4 {[%emt 0:03:44]} h6 {[%emt 0:02:11]} 28. hxg5 {[%emt 0:01:22]} hxg5 {[%emt 0:00:01]} 29. Qg3 {[%emt 0:00:13]} Kg6 {[%emt 0:01:11]} 30. Qh3 {[%emt 0:03:01]} Qb5 {[%emt 0:01:37]} 31. e4 {[%emt 0:02:50]} dxe4 {[%emt 0:00:41]} 32. Nxe4 {[%emt 0:01:33]} Rxc3 {[%emt 0:00:18]} 33. Nxc3 {[%emt 0:00:04]} Qc4 {[%emt 0:00:39]} 34. Qe3 {[%emt 0:01:09]} Nd5 {[%emt 0:00:42]} 35. Nxd5 {[%emt 0:00:27]} Qxd5 {[%emt 0:00:02]} 36. Qc3 {[%emt 0:00:15]} g4 {[%emt 0:00:42]} 37. Kh2 {[%emt 0:02:00]} f4 {[%emt 0:00:53]} 38. Qc2+ {[%emt 0:01:00]} Kg5 {[%emt 0:00:28]} 39. Qh7 {[%emt 0:00:14]} Qxd4 {[%emt 0:01:14]} 40. Qg7+ {[%emt 0:00:00]} Kf5 {[%emt 0:00:00]} 41. Qf6+ {[%emt 0:01:43]} Ke4 {[%emt 0:01:15]} 42. Qxe6 {[%emt 0:00:21]} g3+ {[%emt 0:01:00]} 43. Kh3 {[%emt 0:00:44]} Qxe5 {[%emt 0:00:45]} 44. Qc4+ {[%emt 0:00:11]} Kf5 {[%emt 0:02:32]} 45. Qf7+ {[%emt 0:00:45]} Ke4 {[%emt 0:05:20]} 46. Qc4+ {[%emt 0:00:11]} Ke3 {[%emt 0:01:34]} 47. Qb3+ {[%emt 0:00:52]} Kd4 {[%emt 0:03:25]} 48. Qd1+ {[%emt 0:04:22]} Ke4 {[%emt 0:02:37]} 49. Qc2+ {[%emt 0:02:48]} Ke3 {[%emt 0:02:14]} 50. Qb3+ {[%emt 0:00:24]} Ke4 {[%emt 0:01:11]} 51. Qc2+ {[%emt 0:00:06]} Ke3 {[%emt 0:01:46]} 52. Qb3+ {[%emt 0:00:06]} Kd4 1/2-1/2

[Event "46th GRE-chT Premier 2018"]
[Site "Rio Achaia"]
[Date "2018.07.11"]
[Round "3"]
[White "Strati, Betty - Anna"]
[Black "Kratimenou, Georgia"]
[Result "1-0"]
[ECO "D31"]
[WhiteElo "1631"]
[BlackElo "1436"]
[Annotator "NA"]
[PlyCount "89"]
[EventDate "2018.07.10"]
[EventType "team-tourn"]
[EventCountry "GRE"]
[SourceTitle "playchess.com"]
[Source "ChessBase"]
[SourceQuality "1"]
[TimeControl "40/5400+30:1800+30"]

1. d4 {[%emt 0:00:00]} d5 {[%emt 0:00:00]} 2. c4 {[%emt 0:00:00]} e6 {[%emt 0:00:00]} 3. Nc3 {[%emt 0:00:00]} Bb4 {[%emt 0:00:04]} 4. Qc2 {[%emt 0:01:06]} dxc4 {[%emt 0:03:35]} 5. Nf3 {[%emt 0:03:02]} Nc6 {[%emt 0:02:04]} 6. e3 {[%emt 0:01:55]} Nf6 {[%emt 0:01:49]} 7. Bxc4 {[%emt 0:01:23]} O-O {[%emt 0:01:14]} 8. O-O {[%emt 0:00:55]} a6 {[%emt 0:10:36]} 9. a3 {[%emt 0:04:05]} Bd6 {[%emt 0:00:56]} 10. b4 {[%emt 0:07:36]} b5 {[%emt 0:02:56]} 11. Bd3 {[%emt 0:00:43]} Bb7 {[%emt 0:00:31]} 12. Rd1 {[%emt 0:04:10]} h6 {[%emt 0:01:34]} 13. Bb2 {[%emt 0:08:20]} Qd7 {[%emt 0:07:36]} 14. h3 {[%emt 0:03:16]} Rfd8 {[%emt 0:02:56]} 15. e4 {[%emt 0:03:48]} Be7 {[%emt 0:02:02]} 16. d5 {[%emt 0:10:46]} exd5 {[%emt 0:15:37]} 17. Nxd5 {[%emt 0:04:18]} Nxd5 {[%emt 0:10:00]} 18. exd5 {[%emt 0:00:09]} Na7 {[%emt 0:01:14]} 19. Bf5 {[%emt 0:07:18]} Qe8 {[%emt 0:07:47]} 20. Qxc7 {[%emt 0:10:05]} Bxd5 {[%emt 0:14:01]} 21. Re1 {[%emt 0:01:50]} Nc6 {[%emt 0:00:41]} 22. Nd4 {[%emt 0:06:13]} Ra7 {[%emt 0:02:04]} 23. Qf4 {[%emt 0:00:51]} Qf8 {[%emt 0:02:55]} 24. Rac1 {[%emt 0:03:15]} Bg5 {[%emt 0:00:32]} 25. Qg4 {[%emt 0:01:59]} Bxc1 {[%emt 0:00:29]} 26. Rxc1 {[%emt 0:00:45]} Ne7 {[%emt 0:02:37]} 27. Bb1 {[%emt 0:01:30]} Rad7 {[%emt 0:00:20]} 28. Nf5 {[%emt 0:02:33]} f6 {[%emt 0:03:36]} 29. Nxh6+ {[%emt 0:01:59]} Kh8 {[%emt 0:00:29]} 30. Nf5 {[%emt 0:01:25]} Be6 {[%emt 0:01:30]} 31. Qh5+ {[%emt 0:03:14]} Kg8 {[%emt 0:00:20]} 32. Nd4 {[%emt 0:04:43]} g6 {[%emt 0:01:17]} 33. Bxg6 {[%emt 0:00:31]} Qg7 {[%emt 0:01:33]} 34. Nxe6 {[%emt 0:00:56]} Qxg6 {[%emt 0:00:19]} 35. Qxg6+ {[%emt 0:00:11]} Nxg6 {[%emt 0:00:04]} 36. Nxd8 {[%emt 0:00:09]} Rxd8 {[%emt 0:00:01]} 37. Bxf6 {[%emt 0:00:57]} Rd3 {[%emt 0:00:05]} 38. Rc3 {[%emt 0:01:39]} Rd1+ {[%emt 0:00:16]} 39. Kh2 {[%emt 0:00:06]} Rd2 {[%emt 0:00:25]} 40. Rf3 {[%emt 0:00:00]} Rd7 {[%emt 0:00:00]} 41. Bc3 {[%emt 0:06:54]} Kh7 {[%emt 0:02:22]} 42. g3 {[%emt 0:02:30]} Re7 {[%emt 0:00:33]} 43. Re3 {[%emt 0:00:33]} Rf7 {[%emt 0:00:12]} 44. Kg2 {[%emt 0:00:27]} Rd7 {[%emt 0:01:01]} 45. f4 {[%emt 0:01:22]} 1-0